bitfinex-derivatives/quotes_SOLF0:USTF0_20251129
["timestamp","ask_amount","ask_price","bid_price","bid_amount"]
[1764378622384,3.08,137.77,137.73,6.5334]
[1764378622586,3.08,137.75,137.71,3.03]
[1764378623278,5.15837554,137.74,137.71,3.03]
[1764378623471,3.08,137.73,137.71,3.07946643]
[1764378624692,3.08,137.73,137.71,0.04946643]
[1764378625476,3.12623038,137.74,137.71,3.07946643]
[1764378627581,0.04623038,137.74,137.71,3.07946643]
[1764378629187,0.04623038,137.74,137.72,9.564]
[1764378631489,0.04623038,137.74,137.72,3.03]
[1764378634193,0.04623038,137.74,137.72,9.5642]
[1764378635389,0.04623038,137.74,137.73,3.3]
[1764378645494,3.26623038,137.74,137.72,3.3]
[1764378646496,3.26623038,137.74,137.71,6.58416643]
[1764378646796,3.26623038,137.74,137.71,9.88416643]
[1764378646996,3.26623038,137.74,137.72,3.3]
[1764378647892,3.26623038,137.74,137.71,6.58416643]
[1764378647893,3.22,137.73,137.71,0.04946643]
[1764378648094,3.22,137.73,137.71,3.34946643]
[1764378648895,9.7538,137.73,137.71,3.34946643]
[1764378653302,3.22,137.72,137.71,3.34946643]
[1764378653505,3.22,137.72,137.71,0.04946643]
[1764378654209,6.57973038,137.74,137.71,3.34946643]
[1764378654801,0.04623038,137.74,137.71,3.34946643]
[1764378655196,3.26623038,137.74,137.71,3.34946643]
[1764378656294,3.26623038,137.74,137.72,3.3]
[1764378658098,3.26623038,137.74,137.71,3.34946643]
[1764378659398,9.79953038,137.74,137.71,3.34946643]
[1764378659697,3.22,137.73,137.71,3.34946643]
[1764378667310,9.61953038,137.74,137.71,3.34946643]
[1764378667513,9.61953038,137.74,137.72,3.09]
[1764378669612,6.57953038,137.74,137.72,3.09]
[1764378669812,0.04623038,137.74,137.72,3.09]
[1764378670413,3.08623038,137.74,137.72,3.09]
[1764378679111,0.04623038,137.74,137.72,3.09]
[1764378680320,0.04623038,137.74,137.72,9.624]
[1764378680619,0.04623038,137.74,137.73,3.17]
[1764378681414,0.04623038,137.74,137.73,9.7038]
[1764378682717,3.03,137.78,137.75,3.17]
[1764378683106,3.03,137.78,137.76,3.17]
[1764378683614,3.07978678,137.78,137.76,3.22348541]
[1764378683916,3.07978678,137.78,137.77,3.17]
[1764378684425,0.04978678,137.78,137.77,3.17]
[1764378688021,3.07978678,137.78,137.76,0.05348541]
[1764378689213,9.61128678,137.78,137.76,0.05348541]
[1764378689415,3.03,137.77,137.76,0.05348541]
[1764378690411,9.5619,137.77,137.76,0.05348541]
[1764378690615,3.03,137.76,137.73,3.17]
[1764378690919,3.03,137.75,137.73,3.17]
[1764378691712,3.03,137.75,137.73,3.22296421]
[1764378693921,3.09,137.76,137.73,3.22296421]
[1764378696323,3.09,137.75,137.73,3.22296421]
[1764378697627,3.09,137.74,137.73,0.05296421]
[1764378699712,9.6233,137.74,137.73,0.05296421]
[1764378702528,3.09,137.74,137.73,0.05296421]
[1764378704619,3.09,137.74,137.73,3.23296421]
[1764378704928,0.04760382,137.75,137.73,3.23296421]
[1764378706424,0.04760382,137.75,137.73,9.76676421]
[1764378707330,0.04760382,137.75,137.74,3.18]
[1764378711632,0.04760382,137.75,137.74,9.7133]
[1764378715734,3.09,137.8,137.76,3.18]
[1764378716636,0.04732986,137.79,137.77,3.22584432]
[1764378716837,3.13732986,137.79,137.77,3.22584432]
[1764378717236,0.04732986,137.79,137.77,3.22584432]
[1764378718937,0.04732986,137.79,137.77,9.75774432]
[1764378719132,0.04732986,137.79,137.78,3.18]
[1764378720842,3.13732986,137.79,137.77,0.04584432]
[1764378722852,3.13732986,137.79,137.77,3.07584432]
[1764378724739,0.04732986,137.79,137.77,3.07584432]
[1764378730747,0.04732986,137.79,137.77,9.60754432]
[1764378730949,0.04732986,137.79,137.78,3.03]
[1764378731754,3.23732986,137.79,137.77,3.07584432]
[1764378734352,3.19,137.78,137.77,0.04584432]
[1764378736365,9.7214,137.78,137.77,0.04584432]
[1764378739464,3.25,137.76,137.73,3.26]
[1764378740663,3.29633435,137.76,137.73,3.30897635]
[1764378741362,9.82873435,137.76,137.73,3.30897635]
[1764378742366,3.25,137.75,137.73,0.04897635]
[1764378742568,3.25,137.75,137.73,3.30897635]
[1764378742758,3.25,137.75,137.73,0.04897635]
[1764378743559,9.7832,137.75,137.73,0.04897635]
[1764378743759,3.25,137.74,137.73,0.04897635]
[1764378744365,9.7832,137.75,137.73,3.30897635]
[1764378746458,3.25,137.74,137.73,3.30897635]
[1764378746657,3.25,137.74,137.73,0.04897635]
[1764378751265,3.25,137.75,137.73,3.30897635]
[1764378751460,3.25,137.75,137.73,0.04897635]
[1764378751666,5.32770544,137.75,137.73,0.04897635]
[1764378751865,3.25,137.74,137.73,0.04897635]
[1764378757071,3.25,137.74,137.73,3.34897635]
[1764378758268,3.25,137.74,137.73,0.04897635]
[1764378758469,11.86100544,137.74,137.73,0.04897635]
[1764378759976,3.02,137.72,137.69,9.8353]
[1764378760778,3.07520925,137.72,137.69,9.88938435]
[1764378761979,3.02,137.71,137.69,6.58938435]
[1764378763981,3.02,137.71,137.69,0.05408435]
[1764378765680,3.02,137.7,137.69,0.05408435]
[1764378767485,9.5552,137.7,137.69,0.05408435]
[1764378770787,11.63290544,137.7,137.69,0.05408435]
[1764378772785,6.5352,137.7,137.69,3.35408435]
[1764378772993,9.5552,137.7,137.69,0.05408435]
[1764378778889,2.13291469,137.72,137.69,0.05408435]
[1764378778890,9.60990925,137.72,137.69,3.35408435]
[1764378779094,3.07520925,137.72,137.69,3.35408435]
[1764378780088,0.05520925,137.72,137.69,3.35408435]
[1764378780289,0.05520925,137.72,137.69,5.43178979]
[1764378780497,0.05520925,137.72,137.7,3.3]
[1764378781290,0.05520925,137.72,137.7,9.8351]
[1764378781686,0.05520925,137.72,137.71,3.3]
[1764378787295,3.11520925,137.72,137.7,9.6651]
[1764378789896,0.05520925,137.72,137.71,3.13]
[1764378791906,3.11520925,137.72,137.69,0.05408435]
[1764378794199,3.06,137.7,137.69,0.05408435]
[1764378796301,0.05520925,137.72,137.69,3.29408435]
[1764378796510,3.20520925,137.72,137.69,3.29408435]
[1764378796911,3.20520925,137.72,137.69,0.05408435]
[1764378797411,3.15,137.71,137.69,0.05408435]
[1764378797922,0.05520925,137.72,137.69,3.29408435]
[1764378798811,0.05520925,137.72,137.71,3.24]
[1764378799312,0.05520925,137.72,137.71,9.7748]
[1764378799614,3.15,137.76,137.72,3.24]
[1764378800004,3.15,137.76,137.73,3.24]
[1764378800512,3.20559822,137.76,137.73,3.29217953]
[1764378801702,9.73799822,137.76,137.73,3.29217953]
[1764378808920,3.15,137.75,137.73,3.29217953]
[1764378812816,0.05559822,137.76,137.73,3.29217953]
[1764378813219,3.26559822,137.76,137.73,3.29217953]
[1764378814416,3.21,137.75,137.73,3.29217953]
[1764378816618,3.21,137.75,137.73,0.05217953]
[1764378816819,3.21,137.74,137.73,0.05217953]
[1764378817630,6.5329,137.75,137.73,3.05217953]
[1764378817821,9.7429,137.75,137.73,3.05217953]
[1764378818326,3.21,137.75,137.73,3.05217953]
[1764378819521,9.79819822,137.76,137.74,3.0]
[1764378820621,6.58819822,137.76,137.74,3.0]
[1764378820823,0.05559822,137.76,137.74,3.0]
[1764378823836,0.05559822,137.76,137.74,9.5333]
[1764378824031,0.05559822,137.76,137.75,3.0]
[1764378825639,3.26559822,137.76,137.74,6.5333]
[1764378825839,3.26559822,137.76,137.74,9.5333]
[1764378827142,0.05559822,137.76,137.75,3.0]
[1764378827846,3.26559822,137.76,137.74,6.5333]
[1764378828054,3.26559822,137.76,137.74,9.5333]
[1764378828246,3.26559822,137.76,137.74,6.5333]
[1764378828645,3.26559822,137.76,137.74,9.5333]
[1764378828847,3.26559822,137.76,137.73,0.05217953]
[1764378829350,3.26559822,137.76,137.73,3.05217953]
[1764378829942,3.26559822,137.76,137.73,0.05217953]
[1764378831449,9.79809822,137.76,137.73,0.05217953]
[1764378831642,3.21,137.75,137.73,0.05217953]
[1764378832647,9.7429,137.75,137.73,0.05217953]
[1764378832953,3.21,137.74,137.73,0.05217953]
[1764378839753,9.7433,137.74,137.73,0.05217953]
[1764378844862,3.24583874,137.75,137.67,8.99483126]
[1764378844863,3.01,137.71,137.67,3.05]
[1764378845466,3.01,137.71,137.67,9.5866]
[1764378845854,3.01,137.69,137.68,0.04889924]
[1764378848463,9.5457,137.69,137.68,0.04889924]
[1764378849964,6.5357,137.69,137.68,3.09889924]
[1764378850161,9.5457,137.69,137.68,0.04889924]
[1764378863774,6.5371,137.66,137.64,3.03]
[1764378863971,3.27,137.65,137.63,3.03]
[1764378864971,3.31927215,137.65,137.63,0.05462337]
[1764378868572,101.6628,137.7,137.63,0.05462337]
[1764378868573,101.6413,137.73,137.64,3.03]
[1764378868775,3.27,137.72,137.68,3.03]
[1764378868974,2.08020048,137.77,137.69,3.03]
[1764378869184,3.27,137.76,137.69,3.03]
[1764378869371,3.27,137.74,137.69,9.5653]
[1764378869579,3.31698353,137.73,137.7,3.07891042]
[1764378870174,0.04698353,137.73,137.7,3.07891042]
[1764378870576,0.04698353,137.73,137.7,111.27291042]
[1764378870877,0.04698353,137.73,137.72,3.03]
[1764378876190,3.22698353,137.73,137.7,3.29891042]
[1764378878990,3.22698353,137.73,137.7,9.83401042]
[1764378879182,0.04698353,137.73,137.71,3.25]
[1764378880395,0.04698353,137.73,137.71,9.7846]
[1764378880889,0.04698353,137.73,137.72,3.25]
[1764378881492,0.04698353,137.73,137.71,9.7846]
[1764378883493,0.04698353,137.73,137.72,3.25]
[1764378890298,3.18,137.78,137.72,28.03]
[1764378890496,3.18,137.76,137.73,3.25]
[1764378890696,3.18,137.76,137.72,28.03]
[1764378891297,3.18,137.74,137.73,0.04744217]
[1764378894707,3.18,137.73,137.7,3.25]
[1764378895705,3.18,137.73,137.7,3.30500125]
[1764378898816,9.7139,137.73,137.7,3.30500125]
[1764378899205,3.18,137.72,137.7,3.30500125]
[1764378899516,3.18,137.72,137.7,0.05500125]
[1764378899914,3.18,137.71,137.7,0.05500125]
[1764378901216,3.18,137.7,137.63,3.25]
[1764378901513,3.18,137.67,137.63,3.25]
[1764378902110,0.05348817,137.66,137.64,3.13485066]
[1764378905108,9.72078817,137.66,137.64,3.13485066]
[1764378905315,9.72078817,137.66,137.64,0.05485066]
[1764378905523,3.13,137.65,137.64,0.05485066]
[1764378906210,3.13,137.64,137.61,3.08]
[1764378907421,3.13,137.64,137.61,3.12670439]
[1764378908927,3.13,137.64,137.62,3.08]
[1764378915932,3.30348817,137.66,137.63,3.22]
[1764378917636,3.25,137.65,137.61,3.26670439]
[1764378918131,2.13368865,137.66,137.61,3.26670439]
[1764378918132,3.25,137.63,137.61,0.04670439]
[1764378918520,3.25,137.63,137.61,3.26670439]
[1764378918719,3.25,137.63,137.61,0.04670439]
[1764378919322,3.25,137.62,137.61,0.04670439]
[1764378919720,3.25,137.61,137.57,3.22]
[1764378919922,3.25,137.58,137.55,3.22]
[1764378920127,3.25,137.57,137.52,3.22]
[1764378920629,0.05099699,137.56,137.54,3.22]
[1764378926639,0.05099699,137.56,137.54,9.7626]
[1764378926839,0.05099699,137.56,137.55,3.22]
[1764378932341,0.05099699,137.56,137.55,9.7624]
[1764378935238,3.13099699,137.56,137.54,3.04]
[1764378935435,0.05099699,137.56,137.54,3.04]
[1764378936439,0.05099699,137.56,137.55,3.04]
[1764378936639,3.13099699,137.56,137.54,3.04]
[1764378937345,0.05099699,137.56,137.54,3.04]
[1764378941055,3.13099699,137.56,137.53,9.63236142]
[1764378944265,3.13099699,137.56,137.54,3.04]
[1764378961584,0.05099699,137.56,137.54,9.5826]
[1764378961777,3.13099699,137.56,137.54,6.5426]
[1764378961980,3.13099699,137.56,137.54,9.5826]
[1764378962381,3.13099699,137.56,137.55,3.18]
[1764378963591,0.05099699,137.56,137.55,3.18]
[1764378970385,5.21151777,137.61,137.56,3.18]
[1764378970589,3.23,137.62,137.56,3.18]
[1764378971289,0.04628762,137.6,137.59,3.18]
[1764378973395,3.27628762,137.6,137.59,3.18]
[1764378973896,0.04628762,137.6,137.59,3.18]
[1764378975900,0.04628762,137.6,137.59,9.7205]
[1764378978100,3.17,137.64,137.61,3.21]
[1764378978293,5.11420001,137.67,137.61,3.21]
[1764378978494,3.17,137.65,137.61,3.21]
[1764378978988,3.17,137.64,137.61,3.21]
[1764378979190,3.21929225,137.64,137.61,3.25600157]
[1764378980299,3.21929225,137.64,137.61,0.04600157]
[1764378980300,3.17,137.63,137.61,0.04600157]
[1764378981295,9.7089,137.63,137.61,0.04600157]
[1764378981496,3.17,137.62,137.61,0.04600157]
[1764378982401,3.17,137.63,137.61,3.25600157]
[1764378982700,3.21929225,137.64,137.61,3.25600157]
[1764378986209,0.04929225,137.64,137.61,3.25600157]
[1764378987513,0.04929225,137.64,137.63,3.21]
[1764378991513,3.21929225,137.64,137.62,3.21]
[1764378992312,3.22,137.63,137.61,3.24600157]
[1764378993412,9.80739225,137.64,137.61,3.24600157]
[1764378993805,3.26929225,137.64,137.61,3.24600157]
[1764378994611,6.58739225,137.64,137.61,3.24600157]
[1764378994912,9.80739225,137.64,137.61,3.24600157]
[1764378996013,0.04929225,137.64,137.61,3.24600157]
[1764378997210,0.04929225,137.64,137.61,9.78550157]
[1764378997405,0.04929225,137.64,137.62,3.2]
[1764378999314,0.04929225,137.64,137.63,9.7386]
[1764379000610,3.22,137.69,137.64,9.7378]
[1764379000812,3.22,137.69,137.65,3.2]
[1764379001618,0.0511573,137.68,137.67,3.2]
[1764379005622,3.2711573,137.68,137.66,0.05143825]
[1764379006018,3.2711573,137.68,137.66,3.25143825]
[1764379006520,0.0511573,137.68,137.67,3.2]
[1764379017029,5.30013098,137.72,137.67,3.2]
[1764379018130,0.05204722,137.71,137.67,3.2]
[1764379018432,6.58684722,137.71,137.68,3.2]
[1764379018632,9.80684722,137.71,137.68,3.2]
[1764379019436,3.27204722,137.71,137.68,3.2]
[1764379020034,3.27204722,137.71,137.69,3.2]
[1764379020632,0.05204722,137.71,137.69,3.2]
[1764379021032,3.27204722,137.71,137.69,3.2]
[1764379026035,3.27204722,137.71,137.67,3.25]
[1764379027840,9.80684722,137.71,137.67,3.25]
[1764379028142,3.04,137.7,137.67,3.25]
[1764379030432,3.04,137.7,137.67,9.7867]
[1764379030628,3.04,137.7,137.68,3.25]
[1764379032139,6.58684722,137.71,137.68,3.25]
[1764379032348,6.58684722,137.71,137.69,3.25]
[1764379033446,9.62684722,137.71,137.69,3.25]
[1764379035041,3.09204722,137.71,137.69,3.25]
[1764379035341,0.05204722,137.71,137.7,3.25]
[1764379035844,0.05204722,137.71,137.7,9.7852]
[1764379036645,5.30013098,137.76,137.72,3.18]
[1764379037042,3.22,137.75,137.72,3.18]
[1764379037237,3.22,137.75,137.72,9.7142]
[1764379037442,3.22,137.75,137.73,3.18]
[1764379037747,0.0505655,137.75,137.73,3.22955656]
[1764379037947,0.0505655,137.75,137.73,9.76325656]
[1764379038149,0.0505655,137.75,137.74,3.18]
[1764379038848,0.0505655,137.75,137.74,9.7133]
[1764379053361,0.0505655,137.75,137.74,3.18]
[1764379058161,0.0505655,137.75,137.74,9.7133]
[1764379060355,9.751,137.79,137.75,9.6927]
[1764379060551,3.12,137.78,137.76,3.16]
[1764379061356,3.12,137.78,137.76,3.20761148]
[1764379061558,3.1677047,137.78,137.76,3.20761148]
[1764379061760,0.0477047,137.78,137.76,9.73981148]
[1764379062057,0.0477047,137.78,137.77,3.16]
[1764379062260,3.1677047,137.78,137.76,9.73981148]
[1764379062761,0.0477047,137.78,137.77,3.16]
[1764379065860,0.0477047,137.78,137.77,9.6919]
[1764379069669,0.0477047,137.78,137.77,3.16]
[1764379069963,3.1677047,137.78,137.76,0.04761148]
[1764379070369,9.6519,137.77,137.76,0.04761148]
[1764379070874,3.12,137.73,137.71,3.16]
[1764379071372,3.12,137.75,137.71,3.16]
[1764379071770,0.05195992,137.74,137.72,3.20941499]
[1764379072183,3.17195992,137.74,137.72,3.20941499]
[1764379072480,9.70535992,137.74,137.72,3.20941499]
[1764379073490,3.12,137.73,137.72,0.04941499]
[1764379076881,3.17195992,137.74,137.72,0.04941499]
[1764379078285,9.70535992,137.74,137.72,0.04941499]
[1764379078480,9.70535992,137.74,137.72,3.20941499]
[1764379078678,3.17195992,137.74,137.72,3.20941499]
[1764379080682,0.05195992,137.74,137.72,3.20941499]
[1764379081874,3.17195992,137.74,137.72,0.04941499]
[1764379082088,3.17195992,137.74,137.72,3.18941499]
[1764379082685,0.05195992,137.74,137.72,3.18941499]
[1764379086194,3.12,137.73,137.72,0.04941499]
[1764379086588,6.58555992,137.74,137.72,3.18941499]
[1764379086795,9.70555992,137.74,137.72,3.18941499]
[1764379086988,6.58555992,137.74,137.72,3.18941499]
[1764379087393,0.05195992,137.74,137.72,3.18941499]
[1764379090905,6.58535992,137.74,137.72,3.18941499]
[1764379091107,6.58535992,137.74,137.72,0.04941499]
[1764379091108,9.70535992,137.74,137.72,0.04941499]
[1764379092806,9.70535992,137.74,137.72,3.18941499]
[1764379093698,3.12,137.73,137.72,0.04941499]
[1764379096407,9.6538,137.73,137.72,0.04941499]
[1764379098906,3.32195992,137.74,137.72,0.04941499]
[1764379099106,0.05195992,137.74,137.72,3.33941499]
[1764379100312,0.05195992,137.74,137.72,9.87351499]
[1764379100715,0.05195992,137.74,137.73,3.29]
[1764379104617,0.05195992,137.74,137.73,9.8238]
[1764379104820,0.00195992,137.74,137.73,9.8238]
[1764379105031,3.27,137.8,137.74,3.29]
[1764379105917,0.05483545,137.78,137.77,3.29]
[1764379107716,3.32483545,137.78,137.76,0.05079947]
[1764379110624,5.34664258,137.77,137.76,0.05079947]
[1764379112226,3.03,137.74,137.7,12.16947715]
[1764379112431,3.03,137.74,137.7,3.13]
[1764379113327,3.0806529,137.73,137.71,0.05447456]
[1764379115832,11.69109548,137.73,137.71,0.05447456]
[1764379116021,3.03,137.7,137.65,12.16947715]
[1764379116325,3.03,137.68,137.65,3.13]
[1764379116829,10.55967787,137.72,137.66,3.13]
[1764379117034,0.05110592,137.7,137.68,3.18295006]
[1764379117825,3.08110592,137.7,137.68,3.18295006]
[1764379118029,5.1577485,137.7,137.68,0.05295006]
[1764379118232,3.03,137.69,137.68,0.05295006]
[1764379124737,11.6931485,137.7,137.68,3.18295006]
[1764379124938,11.6931485,137.7,137.68,0.05295006]
[1764379124939,3.03,137.69,137.68,0.05295006]
[1764379127142,3.03,137.68,137.64,3.13]
[1764379127332,3.03,137.67,137.64,3.13]
[1764379127531,3.03,137.66,137.63,9.6681]
[1764379127935,3.08420625,137.66,137.63,9.72094738]
[1764379128843,3.08420625,137.66,137.63,3.18284738]
[1764379130033,9.62140625,137.66,137.63,3.18284738]
[1764379131742,3.03,137.64,137.63,0.05284738]
[1764379132634,3.03,137.63,137.58,3.13]
[1764379133549,0.04953692,137.62,137.6,3.13]
[1764379135654,0.04953692,137.62,137.6,9.6699]
[1764379135854,0.04953692,137.62,137.61,3.13]
[1764379146469,0.04953692,137.62,137.61,9.6695]
[1764379150667,3.2,137.67,137.64,3.11]
[1764379151667,3.25581329,137.67,137.64,3.16369425]
[1764379152370,3.25581329,137.67,137.64,9.70169425]
[1764379152566,3.25581329,137.67,137.65,3.11]
[1764379152768,3.25581329,137.67,137.64,0.05369425]
[1764379153670,3.2,137.66,137.64,0.05369425]
[1764379154376,9.7372,137.66,137.64,0.05369425]
[1764379154576,3.2,137.65,137.64,0.05369425]
[1764379159277,3.0,137.64,137.59,27.97]
[1764379159479,3.0,137.62,137.59,3.17]
[1764379159679,3.0,137.6,137.57,3.17]
[1764379160177,3.05537804,137.6,137.57,0.05587545]
[1764379160368,3.0,137.57,137.53,3.17]
[1764379161477,0.04733883,137.56,137.54,3.22391353]
[1764379162276,3.04733883,137.56,137.54,3.22391353]
[1764379162473,3.04733883,137.56,137.54,0.05391353]
[1764379163376,0.04733883,137.56,137.54,3.22391353]
[1764379169181,3.04733883,137.56,137.54,0.05391353]
[1764379169585,3.0,137.55,137.54,0.05391353]
[1764379169790,3.0,137.55,137.51,3.17]
[1764379170085,3.0,137.54,137.51,3.17]
[1764379170883,9.5429,137.54,137.51,0.05385574]
[1764379171081,3.0,137.55,137.51,3.22385574]
[1764379171482,3.0,137.54,137.51,3.22385574]
[1764379172483,3.26,137.53,137.51,3.22385574]
[1764379175590,3.26,137.53,137.51,0.05385574]
[1764379176285,3.26,137.52,137.51,0.05385574]
[1764379178195,3.26,137.5,137.45,3.07]
[1764379179195,0.05194629,137.49,137.46,0.04863655]
[1764379179390,3.31194629,137.49,137.46,3.11863655]
[1764379179900,3.26,137.48,137.46,3.11863655]
[1764379180597,3.26,137.48,137.46,0.04863655]
[1764379181504,3.26,137.48,137.46,3.11863655]
[1764379181800,9.8059,137.48,137.46,0.04863655]
[1764379182094,3.26,137.47,137.46,0.04863655]
[1764379182900,3.26,137.45,137.42,9.6181]
[1764379183800,3.31403639,137.45,137.42,6.59503856]
[1764379184094,3.31403639,137.45,137.42,9.66503856]
[1764379184310,3.31403639,137.45,137.42,0.04693856]
[1764379184499,9.86123639,137.45,137.42,0.04693856]
[1764379184703,3.26,137.44,137.42,0.04693856]
[1764379186597,3.26,137.44,137.42,3.11693856]
[1764379190402,3.26,137.44,137.42,0.04693856]
[1764379190601,9.8077,137.44,137.42,0.04693856]
[1764379190794,3.26,137.43,137.42,0.04693856]
[1764379195901,3.26,137.41,137.36,3.07]
[1764379196408,3.31177076,137.4,137.37,3.12070162]
[1764379196604,3.31177076,137.4,137.37,0.05070162]
[1764379196605,3.26,137.39,137.37,0.05070162]
[1764379197200,3.26,137.38,137.37,0.05070162]
[1764379198297,3.26,137.35,137.31,3.07]
[1764379199508,3.30591271,137.34,137.32,0.0482721]
[1764379203216,3.30591271,137.34,137.32,3.0682721]
[1764379203717,3.30591271,137.34,137.32,0.0482721]
[1764379204520,3.30591271,137.34,137.26,3.02]
[1764379204521,3.01,137.3,137.26,3.02]
[1764379205411,0.0524393,137.29,137.27,3.07065807]
[1764379206504,0.0524393,137.29,137.27,11.08615807]
[1764379206707,0.0524393,137.29,137.28,3.02]
[1764379214424,0.0524393,137.29,137.27,0.05065807]
[1764379214625,3.0624393,137.29,137.27,3.07065807]
[1764379216023,3.07,137.34,137.28,3.2]
[1764379216821,3.07,137.34,137.31,3.2]
[1764379217020,3.11982122,137.34,137.31,3.25169331]
[1764379218426,3.11982122,137.34,137.31,9.80549331]
[1764379218626,3.11982122,137.34,137.31,3.25169331]
[1764379218827,0.04982122,137.34,137.33,3.2]
[1764379222631,3.11982122,137.34,137.32,9.7533]
[1764379222830,0.04982122,137.34,137.33,3.2]
[1764379223421,0.04982122,137.34,137.33,9.7528]
[1764379227430,3.07,137.41,137.34,3.2]
[1764379228423,0.05037023,137.39,137.38,3.2]
[1764379231230,3.12037023,137.39,137.36,3.25386962]
[1764379231933,0.05037023,137.39,137.36,3.25386962]
[1764379233039,0.05037023,137.39,137.38,3.19]
[1764379233928,0.05037023,137.39,137.38,9.7405]
[1764379241033,9.8576,137.44,137.4,3.19]
[1764379241943,0.0509365,137.43,137.41,3.2421352]
[1764379243345,0.0509365,137.43,137.41,9.7910352]
[1764379243637,0.0509365,137.43,137.42,3.19]
[1764379246133,3.3609365,137.43,137.41,9.7910352]
[1764379247042,0.0509365,137.43,137.42,3.19]
[1764379247341,3.31,137.46,137.43,3.19]
[1764379247550,6.5455,137.49,137.43,3.19]
[1764379247551,3.31,137.48,137.43,3.19]
[1764379248335,3.31,137.48,137.44,3.19]
[1764379248650,3.35864047,137.47,137.44,3.23689299]
[1764379249046,0.04864047,137.47,137.44,3.23689299]
[1764379250144,0.04864047,137.47,137.44,9.78449299]
[1764379250348,0.04864047,137.47,137.45,3.19]
[1764379250652,3.35864047,137.47,137.44,6.59449299]
[1764379250944,3.35864047,137.47,137.44,9.78449299]
[1764379251348,3.35864047,137.47,137.44,0.04689299]
[1764379252138,3.35864047,137.47,137.44,3.23689299]
[1764379253038,3.35864047,137.47,137.44,9.78439299]
[1764379256654,3.35864047,137.47,137.44,3.23689299]
[1764379256955,0.04864047,137.47,137.46,3.19]
[1764379258566,3.35864047,137.47,137.44,3.23689299]
[1764379258752,3.35864047,137.47,137.44,0.04689299]
[1764379259060,3.35864047,137.47,137.44,3.23689299]
[1764379259659,9.90484047,137.47,137.44,9.78449299]
[1764379263262,3.13,137.46,137.44,6.59449299]
[1764379263564,3.13,137.45,137.44,0.04689299]
[1764379269967,3.13,137.44,137.41,6.5489]
[1764379270872,3.1854844,137.44,137.41,6.60383006]
[1764379271472,3.1854844,137.44,137.41,9.65383006]
[1764379275085,0.0554844,137.44,137.42,9.5985]
[1764379275282,0.0554844,137.44,137.43,3.05]
[1764379277782,0.0554844,137.44,137.43,9.5981]
[1764379282187,3.3454844,137.44,137.43,6.5481]
[1764379282887,3.3454844,137.44,137.42,3.2]
[1764379283185,0.0554844,137.44,137.42,3.2]
[1764379286079,9.8930844,137.44,137.41,3.25493006]
[1764379286983,6.6030844,137.44,137.41,3.25493006]
[1764379288787,0.0554844,137.44,137.41,9.80353006]
[1764379289179,3.3454844,137.44,137.42,3.2]
[1764379296292,0.0554844,137.44,137.42,6.5486]
[1764379296493,0.0554844,137.44,137.43,3.2]
[1764379297598,3.0354844,137.44,137.42,9.7486]
[1764379298996,0.0554844,137.44,137.43,9.7481]
[1764379301799,5.45783453,137.48,137.46,3.2]
[1764379302000,6.5455,137.49,137.46,3.2]
[1764379302801,9.57981808,137.49,137.46,3.25339124]
[1764379305802,0.05431808,137.49,137.46,3.25339124]
[1764379306004,0.05431808,137.49,137.47,8.99808588]
[1764379306305,0.05431808,137.49,137.48,3.2]
[1764379306502,2.98,137.54,137.48,3.2]
[1764379306708,2.98,137.54,137.49,3.2]
[1764379307601,3.03487612,137.53,137.5,3.25273675]
[1764379308300,3.03487612,137.53,137.5,9.79733675]
[1764379308499,3.03487612,137.53,137.51,3.2]
[1764379311816,0.05487612,137.53,137.51,3.2]
[1764379313716,9.521,137.58,137.52,3.2]
[1764379314110,9.5201,137.6,137.54,3.2]
[1764379314611,0.05331838,137.58,137.56,3.25550134]
[1764379314913,3.03331838,137.58,137.56,3.25550134]
[1764379316920,3.03331838,137.58,137.56,0.05550134]
[1764379317714,9.57441838,137.58,137.56,0.05550134]
[1764379317918,2.98,137.57,137.5,3.2]